Cogmind - Beta 15 @@@ ROGUE MODE // 2025.06.28 @ 13:10:18 Player: Razrazz Result: Destroyed by D-53 Grenadier with Mini Grenade Launcher Performance ------------- Evolutions (0) 0 Regions Visited (2) 400 Robots Destroyed (18) 90 Value Destroyed (321) 321 Prototype IDs (0) 0 Alien Tech Used (0) 0 Bonus (0) 0 TOTAL SCORE: 811 Bonus ------- None Cogmind --------- Core Integrity 0/250 Matter 285/300 Energy 69/100 System Corruption 1% Temperature Cool (0) Movement Flying (40) Location -10/Mines Parts ------- > --- POWER (1) -------- (None) > --- PROPULSION (2) --- Flight Unit > --- UTILITY (2) ------ (None) > --- WEAPON (2) ------- (None) > --- INVENTORY (5) ---- Compact Wheel Medium Matter Pod (98) Mining Claw Peak State ------------ > --- POWER ------------ Light Nuclear Core > --- PROPULSION ------- Light Treads Light Treads > --- UTILITY ---------- Small Storage Unit Improved Terrain Scanner > --- WEAPON ----------- EM Pulse Gun Assault Rifle > --- INVENTORY -------- Ion Engine Compact Wheel Flight Unit Flight Unit Medium Matter Pod Mining Claw [Rating: 11] Favorites ----------- Power Light Nuclear Core Engine Ion Engine Power Core Light Nuclear Core Propulsion Light Treads Treads Light Treads Flight Unit Flight Unit Utility Small Storage Unit Device Sensor Array Storage Small Storage Unit Weapon Assault Rifle Energy Gun EM Pulse Gun Ballistic Gun Assault Rifle Launcher Rocket Launcher Build | -11 -10 -10 ------- Run | Yrd Mat Min Slots Evolved . | . . . Power . | . . . Propulsion . | . . . Utility . | . . . Weapon . | . . . Parts Attached 16 | 8 5 3 Power 2 | 1 1 . Engine 1 | 1 . . Core 1 | . 1 . Reactor . | . . . Propulsion 4 | 2 . 2 Treads 2 | 2 . . Leg . | . . . Wheel . | . . . Hover . | . . . Flight 2 | . . 2 Utility 5 | 3 2 . Device 4 | 2 2 . Storage 1 | 1 . . Processor . | . . . Hackware . | . . . Protection . | . . . Artifact . | . . . Weapon 5 | 2 2 1 Energy Gun 2 | 1 1 . Energy Cannon . | . . . Ballistic Gun 1 | 1 . . Ballistic Cannon . | . . . Launcher 2 | . 1 1 Special Weapon . | . . . Impact Weapon . | . . . Slashing Weapon . | . . . Piercing Weapon . | . . . Special Melee Weapon . | . . . Unidentified Prototypes . | . . . Parts Lost 6 | . 3 3 Power 1 | . 1 . Propulsion 2 | . . 2 Utility 1 | . 1 . Weapon 2 | . 1 1 Highest Loss Streak 3 | . 1 3 To Critical Strikes . | . . . Average Backups 5 | 2 6 8 Power 1 | . 1 1 Propulsion 2 | . 3 3 Utility 1 | . 1 2 Weapon 1 | . . 2 Tool/Special . | . . . Unused Backups 6 | . 2 4 Power 1 | . . 1 Propulsion 2 | . 1 1 Utility 2 | . 1 1 Weapon 1 | . . 1 Tool/Special . | . . . Average Slot Usage (%) 95 | . 95 93 Engine 4 | . 4 . Core 8 | . 7 13 Treads 27 | . 28 26 Device 11 | . 11 13 Storage 13 | . 14 13 Energy Gun 10 | . 12 . Ballistic Gun 13 | . 14 13 Launcher 3 | . 1 13 Peak Build Rating 11 | 9 11 11 Average Rating 8 | 7 8 10 On Entrance 5 | . 7 10 Naked Turns . | . . . Heaviest Build 17 | 15 16 17 Greatest Support 40 | 40 40 40 Greatest Overweight (x) . | . . . Average Overweight (x) . | . . . Largest Inventory Capacity 8 | 8 8 8 Average Capacity 7 | 7 8 7 Most Carried 8 | 4 8 8 Average Carried 5 | 2 6 7 Final Capacity 8 | 8 8 5 Final Carried 8 | 4 8 3 Class Distribution -------------------- 100% | Mutant Dominant Class ---------------- Mutant | -10/Materials Mutant | -10/Mines Resources | -11 -10 -10 ----------- Run | Yrd Mat Min Matter Collected 569 | 247 201 121 Remotely . | . . . Salvage Created 394 | 98 296 . Parts 33 | 8 25 . Haulers Intercepted . | . . . Recyclers Shooed . | . . . Parts Field Recycled . | . . . Retrieved Matter . | . . . Parts Self-Destructed . | . . . Prevented . | . . . Kills | -11 -10 -10 ------- Run | Yrd Mat Min Combat Hostiles Destroyed 8 | . 8 . Guns 7 | . 7 . AOE 1 | . 1 . Classes Destroyed 6 | 1 5 . Worker 1 | . 1 . Builder 2 | . 2 . Tunneler 5 | 5 . . Watcher 2 | . 2 . Swarmer 3 | . 3 . Grunt 5 | . 5 . Best Kill Streak 5 | 3 5 . Combat Bots Only 3 | . 3 . Max Kills in Single Turn 3 | 1 3 . Gunslinging . | . . . Exploded 1 | . 1 . Melee . | . . . Uniques/NPCs Destroyed . | . . . Combat | -11 -10 -10 -------- Run | Yrd Mat Min Hostile Shots Fired 56 | . 53 3 Missed 13 | . 13 . Hits 43 | . 40 3 Projectile 43 | . 40 3 AOE 8 | . . 8 Damage Taken 883 | 40 514 329 Core 258 | 40 44 174 Absorbed by Shields . | . . . Core Remaining (%) 84 | 84 . . Volleys Fired 47 | 19 28 . Largest 2 | 2 2 . Hottest 60 | 60 60 . Shots Fired 78 | 22 56 . Gun 78 | 22 56 . Cannon . | . . . Launcher . | . . . Special . | . . . Kinetic 47 | 19 28 . Thermal . | . . . Explosive . | . . . Electromagnetic 31 | 3 28 . Robot Hit Streak 10 | 10 5 . Robot Miss Streak 5 | 2 5 . Penetration Max . | . . . Secondary Targets 1 | . 1 . Max Gunslinging Chain 1 | . 1 . Shots Hit Robots 48 | 16 32 . Core Hits 25 | 5 20 . Critical Kills . | . . . Critical Parts Destroyed . | . . . Critical Strikes 1 | . 1 . Corrupt 1 | . 1 . Melee Attacks . | . . . Impact . | . . . Slashing . | . . . Piercing . | . . . Sneak Attacks . | . . . Combat Hostiles . | . . . Follow-up Attacks . | . . . Damage Inflicted 1179 | 201 978 . Guns 632 | 181 451 . Cannons . | . . . Explosions 547 | 20 527 . Melee . | . . . Ramming . | . . . Kinetic 302 | 139 163 . Thermal 81 | 20 61 . Explosive 466 | . 466 . Electromagnetic 330 | 42 288 . Impact . | . . . Slashing . | . . . Piercing . | . . . Highest Corruption 1 | . 1 1 Average Corruption 1 | . 1 1 Corruption Purged . | . . . Corruption Blocked . | . . . Effects 3 | . 2 1 Matter Fused 1 | . 1 . Heat Flow Errors 2 | . 1 1 Overload Shots . | . . . Overflow Damage 37 | . 37 . Projectiles . | . . . Explosions 37 | . 37 . Melee . | . . . Knockbacks . | . . . Impact . | . . . Kinetic . | . . . Secondary . | . . . Self-Inflicted Damage 97 | 40 57 . Shots 3 | 1 2 . Rammed . | . . . Targets Rammed . | . . . Kicked . | . . . Crushed . | . . . Highest Temperature 120 | 12 120 100 Average Temperature 26 | 12 24 58 Received Heat Transfer 222 | . 222 . Siege Activations . | . . . Martial Activations . | . . . Shielding Activations . | . . . Robots Disrupted . | . . . Combat Hostiles . | . . . Robots Corrupted . | . . . Combat Hostiles . | . . . Parts Fried . | . . . Impact Corruptions . | . . . Robots Melted . | . . . Combat Hostiles . | . . . Parts Melted . | . . . Heat Transferred 150 | 50 100 . Parts Sabotaged . | . . . Parts Stolen . | . . . Parts Stripped . | . . . Power Chain Reactions 3 | 1 2 . Alert | -11 -10 -10 ------- Run | Yrd Mat Min Maximum Alert Level 1 | . 1 . Low Security (%) 96 | 100 95 100 Level 1 3 | . 5 . Level 2 . | . . . Level 3 . | . . . Level 4 . | . . . Level 5 . | . . . High Security . | . . . Max Security . | . . . Peak Influence 214 | 5 214 22 Initial 22 | . . 22 Average 74 | 1 115 5 Influence Increases 404 | 25 379 . Destroy 0b10 Robot/C 160 | . 160 . Destroy 0b10 Robot/NC 50 | 25 25 . Destroy Leader 34 | . 34 . Successful Hack 36 | . 36 . Disable Machine 45 | . 45 . Destroy Structure 49 | . 49 . Lose Combat Pursuer 30 | . 30 . Influence Decreases 404 | 25 322 57 Entered New Map 35 | . . 35 Time Decay 339 | 25 292 22 Lost Part 30 | . 30 . Squads Dispatched 1 | . 1 . Investigation 1 | . 1 . Extermination . | . . . Reinforcement . | . . . Assault . | . . . Garrison . | . . . Intercept . | . . . Searches Triggered . | . . . Construction Impeded . | . . . Haulers Reinforced . | . . . Active Scanning Responses . | . . . Cargo Convoy Interrupts . | . . . Stealth | -11 -10 -10 --------- Run | Yrd Mat Min Distress Signals 1 | . 1 . Communications Jammed . | . . . Distress Signals . | . . . Times Spotted 15 | . 13 2 Peak Tracking Total 4 | . 4 2 Tactical Retreats 1 | . 1 . Traps | -11 -10 -10 ------- Run | Yrd Mat Min Traps Triggered 1 | . 1 . Indirectly . | . . . Trap Hack Attempts . | . . . Triggered . | . . . Disarmed . | . . . Reprogrammed . | . . . Reused . | . . . Traps Extracted . | . . . Installed . | . . . Triggered . | . . . Objects Rigged 3 | . 3 . Exploded 2 | . 2 . Machines | -11 -10 -10 ---------- Run | Yrd Mat Min Machines Disabled 3 | . 3 . Max in Single Turn 1 | . 1 . Machines Repaired . | . . . Machines Dismantled . | . . . Machines Sabotaged . | . . . Overloaded Fab Kills . | . . . Hacking | -11 -10 -10 --------- Run | Yrd Mat Min Machines Accessed 6 | . 6 . Terminals 6 | . 6 . Fabricators . | . . . Repair Stations . | . . . Recycling Units . | . . . Scanalyzers . | . . . Garrison Access . | . . . Total Hacks 15 | . 15 . Successful 10 | . 10 . Failed 5 | . 5 . Catastrophic 1 | . 1 . Database Lockouts . | . . . Manual 15 | . 15 . Terminals 15 | . 15 . Fabricators . | . . . Repair Stations . | . . . Recycling Units . | . . . Scanalyzers . | . . . Garrison Access . | . . . Terminal Hacks 2 | . 2 . Branch Access Points 1 | . 1 . Alert Level 1 | . 1 . Fabricator Hacks . | . . . Repair Station Hacks . | . . . Recycling Unit Hacks . | . . . Scanalyzer . | . . . Garrison Access Hacks . | . . . Unauthorized Hacks 8 | . 8 . Terminals 8 | . 8 . Track 3 | . 3 . Botnet 4 | . 4 . Detonate 1 | . 1 . Fabricators . | . . . Repair Stations . | . . . Recycling Units . | . . . Scanalyzers . | . . . Garrison Access . | . . . Data Cores Recovered . | . . . Used . | . . . Hacking Detections 5 | . 5 . Full Trace Events . | . . . Feedback Events . | . . . Feedback Blocked . | . . . Robot Schematics Acquired . | . . . Robots Built . | . . . Authchips . | . . . Time . | . . . Total Robot Build Rating . | . . . Part Schematics Acquired . | . . . Parts Built . | . . . Authchips . | . . . Time . | . . . Total Part Build Rating . | . . . Parts Repaired . | . . . Time . | . . . Parts Recycled . | . . . Recycled Matter . | . . . Retrieved Matter . | . . . Retrieved Components . | . . . Parts Scanalyzed . | . . . Part Schematics Acquired . | . . . Parts Damaged . | . . . Bothacking | -11 -10 -10 ------------ Run | Yrd Mat Min Used RIF Installer . | . . . Robots Hacked . | . . . Non-combat . | . . . Combat . | . . . Robot Hacks Applied . | . . . Relay Couplers Released . | . . . Fabnet Peak Effective % . | . . . Robots Rewired . | . . . Allies Hacked . | . . . Hacks Repelled . | . . . Allies | -11 -10 -10 -------- Run | Yrd Mat Min Total Allies . | . . . Largest Group . | . . . Highest-Rated Group . | . . . Highest-Rated Ally . | . . . Total Orders . | . . . Ally Attacks . | . . . Total Damage . | . . . Kills . | . . . Allies Corrupted . | . . . Allies Melted . | . . . Intel | -11 -10 -10 ------- Run | Yrd Mat Min Active Infowar (turns) 816 | 154 535 127 Sensors 373 | . 246 127 Terrain 200 | 129 71 . Structural 82 | . 82 . Seismic 161 | 25 136 . Robot Analysis Total . | . . . Derelict Logs Recovered 1 | . . 1 Drone Launches . | . . . Drone Recoveries . | . . . Exploration | -11 -10 -10 ------------- Run | Yrd Mat Min Turns Passed 1010 | 241 640 129 Spaces Moved 523 | 116 335 72 Core 1 | 1 . . Treads 522 | 115 335 72 Legs . | . . . Wheels . | . . . Hover . | . . . Flight . | . . . Fastest Speed 50 | 50 160 160 Average Speed 159 | 159 160 160 Slowest Speed 160 | 160 160 160 Overloaded Moves . | . . . Propulsion Burnouts . | . . . Robots Hopped . | . . . Potential Cave-ins . | . . . Cave-ins Triggered . | . . . Exploration Rate (%) 34 | 6 69 27 Regions Visited 2 Branch Regions 1 Pre-discovered Areas . | . . . Known Exits Taken 1 | . 1 . Unknown Exits Taken 1 | 1 . . Scrap Searched 1 | . . 1 Spaces Dug . | . . . Terrain Destroyed 74 | 2 72 . Melee . | . . . Projectile . | . . . AOE 74 | 2 72 . Terrain Rammed . | . . . Walls Destroyed . | . . . Machines Disabled . | . . . Actions | -11 -10 -10 --------- Run | Yrd Mat Min Total 617 | 147 384 86 Wait 12 | 1 2 9 Move 521 | 115 334 72 Hop . | . . . Pick Up 13 | 4 9 . Fast Attach 11 | 7 3 1 Attach 5 | . 3 2 Detach 1 | . . 1 Swap 1 | 1 . . Drop 6 | . 5 1 Fire 47 | 19 28 . Melee . | . . . Ram . | . . . Kick . | . . . Crush . | . . . Escape Stasis . | . . . Rewire . | . . . Trap . | . . . Miscellaneous . | . . . Route ------- -11/Scrapyard -10/Materials (discovered 4 exits: *Mat x2 / *Min x2) -10/Mines (discovered 2 exits: *Mat x2) History --------- Turn | Location | Event 14 | -11/Scrapyard | Discovered new exit (range 15) 242 | -11/Scrapyard | Entered Materials 300 | -10/Materials | Build established: Mutant 526 | -10/Materials | Discovered new exit (range 10) 642 | -10/Materials | Discovered new exit (range 8) 778 | -10/Materials | Identified exit to Mines 798 | -10/Materials | Discovered new exit (range 3) 882 | -10/Materials | Entered Mines 899 | -10/Mines | Received a Rocket Launcher from a helpful Derelict 982 | -10/Mines | Identified exit to Materials 1002 | -10/Mines | Assembled infested the area 1005 | -10/Mines | Discovered exit to Materials (range 7) 1006 | -10/Mines | Core integrity fell below 50% 1007 | -10/Mines | Assisted by a Guerilla fighting off Assembled 1009 | -10/Mines | Released all parts (5) 1011 | -10/Mines | Destroyed by D-53 Grenadier with Mini Grenade Launcher Last Messages --------------- dispatching Demolisher response squad. 01005_ Assault Rifle destroyed. 01005_ EXIT=FOUND: MATERIALS 01006_ 4C-GEJ(h): "I'll hold them off! Go on ahead or try to find another way!" 01007_ A derelict emerges from the shadows: "You need to get out of here! I've been tracking a group of Assembled to figure out where they're coming from, and they're closing on this area, come on!" 01007_ The unstable cave ceiling collapses. 01007_ Lgt. Treads destroyed. 01008_ HV Slug penetrates Wall. 01009_ 4C-GEJ(h) destroyed. 01009_ Released Lgt. Nuclear Core. 01009_ Released Sml. Storage Unit. 01009_ Released Lgt. Treads. 01009_ Released Sensor Array. 01009_ Released Rocket Launcher. 01011_ Flight Unit destroyed. Map ----- +----------------------------------------------------+ | ??? ???????????????????????????????????? | | ??? ????????????????????????????????????? | | ??? #????????????????????????????????????? | | ??? #????????????????????????????????????? | | ???# ##???????????????????????????????????? | | ??## #???????????????????????????????????? | | ?## #???????????????????????????????????? | | ?# #????????????????????????????????????? | | ?# ###????????????????????????????????????? | | ?# ##??????????????????????????????????????? | | ?# #???????????????????????????????????????? | | ## #???????????????????????????????????????? | | #???????????????????????????????????????? | | #??????????????########?????????????????? | | ###?????????????? #####?????????????? | | #???????????????? #?????????????? | | ################# #??# ##?#??????????? | | #??# T? #??????????? | | #??# ## #??????????? | | ############## ###??# < #; ##?????????? | | ##????????????# #????# #??##?????? | | #?????????????# #??### # ?????? | | #?????????????# #### d ""??????? | | ##?????????????# d #?????????? | | ##??????????????# ##r !] #?????????? | | #???????????????# ## ]@= #?????????? | | #???????????????# ### ! #?????????? | | ???????????????# #?# * #?????????? | | ??????????????? #?## # #?????????? | | ???????????????###??### # # #?????????? | | #??????????????????????# #?????????? | | #???????????????????????##### #?????????? | | ?????????????????????????????#? #?????????? | | ???????????????????????????????? #?????????? | | ????????????????????????????????? #?????????? | | ??????????????????????????????????#?????????? | | ????????????????????????????????????????????? | | ????????????????????????????????????????????? | | ????????????????????????????????????????????? | | ????????????????????????????????????????????? | | ????????????????????????????????????????????? | | ????????????????????????????????????????????? | | ????????????????????????????????????????????? | | ????????????????????????????????????????????? | | ????????????????????????????????????????????? | | ????????????????????????????????????????????? | | ????????????????????????????????????????????? | | ????????????????????????????????????????????? | | ????????????????????????????????????????????? | | ????????????????????????????????????????????? | +----------------------------------------------------+ Best States ------------- Heat Dissipation 25 Energy Generation 14 Energy Capacity 250 Matter Stores 300 Matter Capacity 300 Sight Range 16 Robot Scan Range 14 Terrain Scan Range 16 Terrain Scan Density 10 Evasion (%) 50 Recoil Reduction 2 Item Schematics ----------------- None Robot Schematics ------------------ None Fabricated ------------ Nothing Repaired ---------- Nothing Alien Tech Used ----------------- None Achievements -------------- Quantum Hacking root@ Challenges ------------ None Game ------ Seed SpreadAntimatterScreen Manual? 0 Play Time 00:14:37 Cumulative 7.5 hours Start 2025.06.28 @ 12:57:43 End 2025.06.28 @ 13:10:18 Sessions 1 Manual Loads 0 Difficulty Rogue Special Mode None Game No. 24 Rogue 24 Adventurer 0 Explorer 0 Win Type - Total 0 Types 0/0/0/0/0/0/0/0/0/0 Lore% 7 Gallery% 10 Achievement% 18 Wizard Run 0 Options --------- Layout 1 ASCII 0 Keyboard 0 Movement Numpad Keybinds 0 Fullscreen 1 Font 32/SmallcapsGlow Map View 50x35 Zoom Use 0% Tactical HUD 1 Map Filters NONE Filters NONE Steam 1 RUN: 890269d3-0df2-499c-9549-45bac7e85ce5